lending/lending_fUSD_20240112
["ID","MTS","AMOUNT","RATE_DAILY","PERIOD"]
[311415423,1705078292492,-500.0,0.00038356,4]
[311415424,1705078292502,-500.0,0.00038356,4]
[311415425,1705078292512,-500.0,0.00038356,4]
[311415426,1705078292522,-500.0,0.00038356,5]
[311415427,1705078292533,-500.0,0.00038356,4]
[311415428,1705078292544,-500.0,0.00038356,4]
[311415429,1705078292554,-671.95,0.00038356,4]
[311415430,1705078292565,-500.0,0.00038356,4]
[311415431,1705078292575,-153.84,0.00038356,2]
[311415432,1705078292586,-1790.46,0.00038374,2]
[311415433,1705078292596,-892.0,0.000384,2]
[311415434,1705078292606,-8000.0,0.000384,2]
[311415435,1705078292616,-489.02623996,0.000385,4]
[311415436,1705078292627,-809.77,0.0003863,4]
[311415437,1705078292639,-731.98,0.0003863,4]
[311415438,1705078292650,-360.37908598,0.0003863,4]
[311415439,1705078292660,-617.18,0.0003863,4]
[311415440,1705078292670,-500.0,0.0003863,4]
[311415441,1705078292681,-500.0,0.0003863,4]
[311415442,1705078292691,-500.0,0.0003863,4]
[311415443,1705078292700,-500.0,0.0003863,4]
[311415444,1705078292711,-336.32,0.0003863,4]
[311415445,1705078292720,-931.55,0.0003863,4]
[311415446,1705078292731,-500.0,0.0003863,4]
[311415447,1705078292741,-1378.86,0.0003863,4]
[311415448,1705078292752,-704.26,0.0003863,4]
[311415449,1705078292763,-500.0,0.0003863,4]
[311415450,1705078292773,-1855.35,0.0003863,4]
[311415451,1705078292783,-633.89,0.0003863,4]
[311415452,1705078292794,-500.0,0.0003863,4]
[311415453,1705078292805,-500.0,0.0003863,4]
[311415454,1705078292815,-500.0,0.0003863,4]
[311415455,1705078292825,-500.0,0.0003863,4]
[311415456,1705078292835,-500.0,0.0003863,4]
[311415457,1705078292845,-549.38,0.0003863,4]
[311415458,1705078292856,-500.0,0.0003863,4]
[311415459,1705078292867,-500.0,0.0003863,4]
[311415460,1705078292877,-270.33,0.0003863,4]
[311415461,1705078292890,-650.36,0.0003863,4]
[311415462,1705078292900,-1004.26,0.0003863,4]
[311415463,1705078292911,-644.9,0.0003863,4]
[311415464,1705078292922,-500.0,0.0003863,4]
[311415465,1705078292932,-500.0,0.0003863,4]
[311415466,1705078292943,-281.73,0.0003863,4]
[311415467,1705078292953,-500.0,0.0003863,4]
[311415468,1705078292963,-1035.58,0.0003863,4]
[311415469,1705078292973,-500.0,0.0003863,4]
[311415470,1705078292983,-682.31,0.0003863,4]
[311415471,1705078292994,-500.0,0.0003863,4]
[311415472,1705078293004,-655.11,0.0003863,4]
[311415473,1705078293014,-500.0,0.0003863,4]
[311415474,1705078293025,-500.0,0.0003863,4]
[311415475,1705078293035,-941.05,0.0003863,4]
[311415476,1705078293045,-500.0,0.0003863,4]
[311415477,1705078293055,-532.17,0.0003863,4]
[311415478,1705078293066,-1133.84,0.0003863,4]
[311415479,1705078293076,-500.0,0.0003863,4]
[311415480,1705078293087,-500.0,0.0003863,4]
[311415481,1705078293098,-500.0,0.0003863,4]
[311415482,1705078293108,-500.0,0.0003863,4]
[311415483,1705078293118,-500.0,0.0003863,4]
[311415484,1705078293128,-500.0,0.0003863,4]
[311415485,1705078293142,-2787.39,0.0003863,4]
[311415486,1705078293153,-665.67,0.0003863,4]
[311415487,1705078293164,-3696.69946434,0.0003863,4]
[311415488,1705078293357,-810.70464152,0.0003863,4]
[311415489,1705078293370,-169.91589414,0.0003863,4]
[311415490,1705078293381,-374.18998357,0.0003863,4]
[311415491,1705078293397,-125.81001643,0.0003863,4]
[311415492,1705078293407,-1033.68,0.0003863,4]
[311415493,1705078293418,-989.52,0.0003863,4]
[311415494,1705078293428,-208.29141982,0.0003863,4]
[311415495,1705078293456,-224.64,0.0003493,2]
[311415496,1705078293467,-326.55395689,0.0003589,4]
[311415497,1705078293481,-173.44604311,0.0003589,4]
[311415498,1705078293492,-223.29473496,0.00038356,4]
[311415499,1705078293589,-846.22987002,0.00023287,2]
[311415500,1705078293603,-1745.52695866,0.00023287,2]
[311415501,1705078293615,-224.64,0.0003493,2]
[311415502,1705078293626,-500.0,0.0003589,4]
[311415503,1705078293639,-500.0,0.00036164,4]
[311415504,1705078293650,-500.0,0.00036164,4]
[311415505,1705078293660,-276.70526504,0.00038356,4]
[311415506,1705078293670,-345.81858018,0.0003863,4]
[311415507,1705078293680,-202.43798521,0.0003863,4]
[311415508,1705078293692,-297.56201479,0.0003863,4]
[311415509,1705078293702,-1450.88,0.0003863,4]
[311415510,1705078293713,-500.0,0.0003863,4]
[311415511,1705078293724,-500.0,0.0003863,4]
[311415512,1705078293734,-986.25,0.0003863,4]
[311415513,1705078293744,-500.0,0.0003863,4]
[311415514,1705078293754,-500.0,0.0003863,4]
[311415515,1705078293765,-5168.02,0.0003863,4]
[311415516,1705078293778,-1229.05,0.0003863,4]
[311415517,1705078293789,-719.31,0.0003863,4]
[311415518,1705078293799,-100.42798534,0.0003863,4]
[311415519,1705078293812,-699.40201466,0.0003863,4]
[311415520,1705078293823,-691.11,0.0003863,4]
[311415521,1705078293833,-500.0,0.0003863,4]
[311415522,1705078293844,-609.83,0.0003863,4]
[311415523,1705078293854,-2978.71,0.0003863,4]
[311415524,1705078293865,-500.0,0.0003863,4]
[311415525,1705078293875,-3.19138341,0.0003863,4]
[311415526,1705078293889,-496.80861659,0.0003863,4]
[311415527,1705078293900,-589.54,0.0003863,4]
[311415528,1705078293910,-510.43,0.0003863,4]
[311415529,1705078293920,-236.86655349,0.0003863,4]
[311415530,1705078293932,-811.62344651,0.0003863,4]
[311415531,1705078293942,-500.0,0.0003863,4]
[311415532,1705078293953,-989.98,0.0003863,4]
[311415533,1705078293963,-515.37,0.0003863,4]
[311415534,1705078293973,-778.99,0.0003863,4]
[311415535,1705078293983,-500.0,0.0003863,4]
[311415536,1705078293994,-500.0,0.0003863,4]
[311415537,1705078294004,-500.0,0.0003863,4]
[311415538,1705078294014,-584.22,0.0003863,4]
[311415539,1705078294024,-232.36439441,0.0003863,4]
[311415540,1705078294037,-410.97560559,0.0003863,4]
[311415541,1705078294047,-500.0,0.0003863,4]
[311415542,1705078294057,-1310.66940523,0.0003863,4]
[311415543,1705078294069,-761.22059477,0.0003863,4]
[311415544,1705078294079,-1972.66,0.0003863,4]
[311415545,1705078294089,-1209.09,0.0003863,4]
[311415546,1705078294099,-3109.86,0.0003863,4]
[311415547,1705078294110,-130.82148418,0.0003863,4]
[311415548,1705078294122,-513.72851582,0.0003863,4]
[311415549,1705078294132,-1521.97,0.0003863,4]
[311415550,1705078294143,-500.0,0.0003863,4]
[311415551,1705078294153,-693.43,0.0003863,4]
[311415552,1705078294163,-500.0,0.0003863,4]
[311415553,1705078294173,-500.0,0.0003863,4]
[311415554,1705078294183,-500.0,0.0003863,4]
[311415555,1705078294193,-500.0,0.0003863,4]
[311415556,1705078294203,-500.0,0.0003863,5]
[311415557,1705078294213,-500.0,0.0003863,4]
[311415558,1705078294224,-500.0,0.0003863,4]
[311415559,1705078294235,-174.39819812,0.0003863,4]
[311415560,1705078294247,-497.55180188,0.0003863,4]
[311415561,1705078294258,-500.0,0.0003863,4]
[311415562,1705078294268,-500.0,0.0003863,4]
[311415563,1705078294278,-156.05480545,0.00038669,7]
[311415564,1705078294288,-153.80314389,0.00038686,7]
[311415565,1705078294298,-285.70145736,0.000388,24]
[311415566,1705078294311,-17214.29854264,0.000388,24]
[311415567,1705078294321,-26701.89745549,0.000388,4]
[311415568,1705078294332,-271.5,0.000388,7]
[311415569,1705078294343,-153.59176384,0.00038812,7]
[311415570,1705078294353,-14024.67514003,0.00038854,12]
[311415571,1705078294364,-809.77,0.00038904,4]
[311415572,1705078294375,-731.98,0.00038904,4]
[311415573,1705078294386,-617.18,0.00038904,4]
[311415574,1705078294399,-500.0,0.00038904,4]
[311415575,1705078294409,-500.0,0.00038904,4]
[311415576,1705078294420,-500.0,0.00038904,4]
[311415577,1705078294430,-931.55,0.00038904,4]
[311415578,1705078294440,-500.0,0.00038904,4]
[311415579,1705078294450,-1378.86,0.00038904,4]
[311415580,1705078294460,-35.24187119,0.00038904,4]
[311415581,1705078294474,-669.01812881,0.00038904,4]
[311415582,1705078294484,-500.0,0.00038904,4]
[311415583,1705078294495,-1855.35,0.00038904,4]
[311415584,1705078294505,-633.89,0.00038904,4]
[311415585,1705078294516,-604.07,0.00038904,4]
[311415586,1705078294525,-500.0,0.00038904,4]
[311415587,1705078294535,-500.0,0.00038904,4]
[311415588,1705078294545,-500.0,0.00038904,4]
[311415589,1705078294556,-500.0,0.00038904,4]
[311415590,1705078294566,-549.38,0.00038904,4]
[311415591,1705078294578,-135.59443945,0.00038904,4]
[311415592,1705078294591,-364.40556055,0.00038904,4]
[311415593,1705078294603,-437.33,0.00038904,4]
[311415594,1705078294614,-650.36,0.00038904,4]
[311415595,1705078294623,-1004.26,0.00038904,4]
[311415596,1705078294633,-644.9,0.00038904,4]
[311415597,1705078294651,-461.48,0.00038904,4]
[311415598,1705078294662,-500.0,0.00038904,4]
[311415599,1705078294672,-500.0,0.00038904,4]
[311415600,1705078294682,-1035.58,0.00038904,4]
[311415601,1705078294692,-500.0,0.00038904,4]
[311415602,1705078294702,-682.31,0.00038904,4]
[311415603,1705078294713,-500.0,0.00038904,4]
[311415604,1705078294723,-655.11,0.00038904,4]
[311415605,1705078294733,-500.0,0.00038904,4]
[311415606,1705078294743,-500.0,0.00038904,4]
[311415607,1705078294753,-941.05,0.00038904,4]
[311415608,1705078294763,-500.0,0.00038904,4]
[311415609,1705078294773,-532.17,0.00038904,4]
[311415610,1705078294784,-1133.84,0.00038904,4]
[311415611,1705078294794,-645.85,0.00038904,4]
[311415612,1705078294804,-500.0,0.00038904,4]
[311415613,1705078294814,-500.0,0.00038904,4]
[311415614,1705078294824,-500.0,0.00038904,4]
[311415615,1705078294833,-500.0,0.00038904,4]
[311415616,1705078294843,-500.0,0.00038904,4]
[311415617,1705078294854,-2787.39,0.00038904,4]
[311415618,1705078294865,-99.60580407,0.00038904,4]
[311415619,1705078294878,-566.06419593,0.00038904,4]
[311415620,1705078294890,-4677.32,0.00038904,4]
[311415621,1705078294901,-446.99327888,0.00038904,4]
[311415622,1705078294911,-1033.68,0.00038904,4]
[311415623,1705078294923,-989.52,0.00038904,4]
[311415624,1705078294933,-554.11,0.00038904,4]
[311415625,1705078294942,-500.0,0.00038904,4]
[311415626,1705078294952,-1450.88,0.00038904,4]
[311415627,1705078294962,-500.0,0.00038904,4]
[311415628,1705078294972,-500.0,0.00038904,4]
[311415629,1705078294982,-986.25,0.00038904,4]
[311415630,1705078294992,-500.0,0.00038904,4]
[311415631,1705078295002,-500.0,0.00038904,4]
[311415632,1705078295012,-4205.62252519,0.00038904,4]
[311415633,1705078295195,-178.45575606,0.00023287,2]
[311415634,1705078295205,-500.0,0.00035616,4]
[311415635,1705078295216,-500.0,0.00035616,4]
[311415636,1705078295226,-500.0,0.0003589,4]
[311415637,1705078295237,-500.0,0.0003589,4]
[311415638,1705078295248,-500.0,0.00036164,4]
[311415639,1705078295258,-500.0,0.00036164,4]
[311415640,1705078295269,-500.0,0.00036438,4]
[311415641,1705078295280,-500.0,0.00036438,4]
[311415642,1705078295290,-500.0,0.00036438,4]
[311415643,1705078295300,-500.0,0.00036438,4]
[311415644,1705078295310,-500.0,0.00036712,4]
[311415645,1705078295320,-607.81767949,0.00036712,4]
[311415646,1705078295330,-500.0,0.00036712,4]
[311415647,1705078295341,-500.0,0.00036986,4]
[311415648,1705078295352,-500.0,0.00036986,4]
[311415649,1705078295362,-500.0,0.0003726,4]
[311415650,1705078295372,-500.0,0.0003726,4]
[311415651,1705078295383,-500.0,0.00037534,4]
[311415652,1705078295396,-398.40231409,0.00037808,4]
[311415653,1705078295407,-962.39747481,0.00038904,4]
[311415654,1705078295417,-1229.05,0.00038904,4]
[311415655,1705078295428,-719.31,0.00038904,4]
[311415656,1705078295439,-654.56677545,0.00038904,4]
[311415657,1705078295468,-145.26322455,0.00038904,4]
[311415658,1705078295479,-691.11,0.00038904,4]
[311415659,1705078295490,-500.0,0.00038904,4]
[311415660,1705078295501,-609.83,0.00038904,4]
[311415661,1705078295511,-2978.71,0.00038904,4]
[311415662,1705078295521,-500.0,0.00038904,4]
[311415663,1705078295532,-500.0,0.00038904,4]
[311415664,1705078295542,-589.54,0.00038904,4]
[311415665,1705078295553,-510.43,0.00038904,4]
[311415666,1705078295564,-1048.49,0.00038904,4]
[311415667,1705078295574,-500.0,0.00038904,4]
[311415668,1705078295584,-989.98,0.00038904,4]
[311415669,1705078295595,-515.37,0.00038904,4]
[311415670,1705078295605,-778.99,0.00038904,4]
[311415671,1705078295616,-500.0,0.00038904,4]
[311415672,1705078295627,-500.0,0.00038904,4]
[311415673,1705078295638,-500.0,0.00038904,4]
[311415674,1705078295649,-584.22,0.00038904,4]
[311415675,1705078295659,-500.0,0.00038904,4]
[311415676,1705078295670,-2071.89,0.00038904,4]
[311415677,1705078295681,-1972.66,0.00038904,4]
[311415678,1705078295692,-1209.09,0.00038904,4]
[311415679,1705078295702,-336.17800933,0.00038904,4]
[311415680,1705078298831,-500.0,0.00037534,4]
[311415681,1705078298842,-2773.68199067,0.00038904,4]
[311415682,1705078298853,-293.90505664,0.00038904,4]
[311415683,1705078298866,-1228.06494336,0.00038904,4]
[311415684,1705078298876,-307.88681588,0.00038904,4]
[311415685,1705078298891,-192.11318412,0.00038904,4]
[311415686,1705078298901,-693.43,0.00038904,4]
[311415687,1705078298912,-500.0,0.00038904,4]
[311415688,1705078298922,-500.0,0.00038904,4]
[311415689,1705078298933,-196.62,0.00038904,4]
[311415690,1705078298943,-98.63681588,0.00038904,4]
[311415691,1705078298955,-401.36318412,0.00038904,4]
[311415692,1705078298965,-453.63681588,0.00038904,5]
[311415693,1705078298988,-7465.28,0.00023579,2]
[311415694,1705078298999,-46.36318412,0.00038904,5]
[311415695,1705078299011,-500.0,0.00038904,4]
[311415696,1705078299021,-528.78846196,0.00038904,4]
[311415697,1705078299032,-671.95,0.00038904,4]
[311415698,1705078299042,-500.0,0.00038904,4]
[311415699,1705078299053,-420.51,0.00038904,4]
[311415700,1705078299063,-153.76348353,0.00038914,7]
[311415701,1705078299074,-281.79561479,0.0003898,2]
[311415702,1705078299085,-155.91333088,0.00038994,7]
[311415703,1705078299095,-974.80075541,0.00039,4]
[311415704,1705078299106,-1427.73011581,0.00039,2]
[311415705,1705078299118,-196.81300889,0.00039,4]
[311415706,1705078299128,-397.701143,0.00039,2]
[311415707,1705078299146,-4706.67169923,0.00039,2]
[311415708,1705078299160,-20010.57275777,0.00039,2]
[311415709,1705078299171,-162.0,0.00039,7]
[311415710,1705078299182,-683.14499984,0.00039,2]
[311415711,1705078299195,-158.77673949,0.00039004,7]
[311415712,1705078299206,-163.83144806,0.00039116,7]
[311415713,1705078299218,-156.05480545,0.00039173,7]
[311415714,1705078299229,-809.77,0.00039178,4]
[311415715,1705078299240,-731.98,0.00039178,4]
[311415716,1705078299251,-617.18,0.00039178,4]
[311415717,1705078299262,-500.0,0.00039178,4]
[311415718,1705078299272,-500.0,0.00039178,4]
[311415719,1705078299283,-500.0,0.00039178,4]
[311415720,1705078299294,-931.55,0.00039178,4]
[311415721,1705078299304,-572.17,0.00039178,4]
[311415722,1705078299314,-1378.86,0.00039178,4]
[311415723,1705078299324,-704.26,0.00039178,4]
[311415724,1705078299336,-500.0,0.00039178,4]
[311415725,1705078299346,-1855.35,0.00039178,4]
[311415726,1705078299355,-633.89,0.00039178,4]
[311415727,1705078299366,-500.0,0.00039178,4]
[311415728,1705078299376,-500.0,0.00039178,4]
[311415729,1705078299386,-500.0,0.00039178,4]
[311415730,1705078299400,-500.0,0.00039178,4]
[311415731,1705078299411,-549.38,0.00039178,4]
[311415732,1705078299421,-500.0,0.00039178,4]
[311415733,1705078299432,-650.36,0.00039178,4]
[311415734,1705078299442,-11.70652711,0.00039178,4]
[311415735,1705078299456,-992.55347289,0.00039178,4]
[311415736,1705078299466,-644.9,0.00039178,4]
[311415737,1705078299477,-500.0,0.00039178,4]
[311415738,1705078299487,-410.04652711,0.00039178,4]
[311415739,1705078299500,-89.95347289,0.00039178,4]
[311415740,1705078299510,-645.96992711,0.00039178,4]
[311415741,1705078299523,-389.61007289,0.00039178,4]
[311415742,1705078299534,-500.0,0.00039178,4]
[311415743,1705078299544,-682.31,0.00039178,4]
[311415744,1705078299555,-88.07992711,0.00039178,4]
[311415745,1705078299577,-411.92007289,0.00039178,4]
[311415746,1705078299587,-91.57992711,0.00039178,4]
[311415747,1705078299608,-563.53007289,0.00039178,4]
[311415748,1705078299619,-278.46992711,0.00039178,4]
[311415749,1705078299632,-221.53007289,0.00039178,4]
[311415750,1705078299645,-500.0,0.00039178,4]
[311415751,1705078299655,-941.05,0.00039178,4]
[311415752,1705078299665,-500.0,0.00039178,4]
[311415753,1705078299676,-532.17,0.00039178,4]
[311415754,1705078299686,-395.57301184,0.00039178,4]
[311415755,1705078299699,-278.5728,0.00039178,4]
[311415756,1705078299715,-500.0,0.00035616,4]
[311415757,1705078299725,-236.71431414,0.00039178,4]
[311415762,1705078370903,-250.0,0.00022678,2]
[311415763,1705078370937,-732.48,0.00022786,2]
[311415764,1705078370974,-10008.38506136,0.00022789,2]
[311415765,1705078371009,-13335.25646014,0.00022799,2]
[311415766,1705078371023,-250.0,0.00022799,2]
[311415767,1705078371035,-732.48,0.00022799,2]
[311415768,1705078371051,-10008.38506136,0.00022799,2]
[311415769,1705078371063,-14683.01341714,0.00022799,2]
[311415770,1705078375333,1003.05262789,0.00021846,2]
[311415773,1705078417364,1253.35240784,0.00020696,5]
[311415777,1705078448853,4910.499999,0.0002,2]
[311415779,1705078452063,4910.43271287,0.00012,30]
[311415780,1705078458147,287.05,0.00022342,2]
[311415781,1705078460889,200.0,0.00021918,2]
[311415784,1705078464849,40745.38510723,0.00022,2]
[311415786,1705078563924,1000.0,0.00022017,2]
[311415787,1705078566150,150.0,0.00022017,2]
[311415788,1705078575141,150.0,0.00022,2]
[311415789,1705078603014,406.6,0.00022017,2]
[311415790,1705078603481,406.6,0.00022133,2]
[311415791,1705078603513,406.6,0.00022249,2]
[311415792,1705078603697,406.6,0.00022365,2]
[311415793,1705078604094,406.6,0.00022481,2]
[311415794,1705078615965,150.0,0.00022,2]
[311415795,1705078659923,263.99964119,0.00022,2]
[311415796,1705078667535,247.35,0.00021842,2]
[311415797,1705078672422,250.0,0.00021915,2]
[311415798,1705078680453,500.0,0.00021926,2]
[311415800,1705078737835,249.9220121,0.00022446,2]
[311415801,1705078742756,249.92201205,0.0002247,2]
[311415802,1705078747740,249.92201205,0.00022494,2]
[311415803,1705078772678,261.15,0.00021843,2]
[311415804,1705078775561,473.1,0.00021828,2]
[311415805,1705078776956,2000.0,0.00021828,2]
[311415806,1705078787733,478.61,0.00019883,2]
[311415807,1705078788399,478.61,0.00022147,2]
[311415808,1705078818840,155.22,0.00021969,2]
[311415809,1705078819315,155.22,0.00022428,2]
[311415810,1705078823915,1852.42,0.00021748,2]
[311415811,1705078840161,14636.01,0.00021746,2]
[311415812,1705078844497,164.62,0.00021746,2]
[311415813,1705079070371,200.0,0.00021759,2]
[311415814,1705079090645,214.66,0.00021759,2]
[311415815,1705079098381,250.0,0.00021759,2]
[311415816,1705079172526,150.77,0.00021907,2]
[311415817,1705079172769,150.77,0.00022478,2]
[311415818,1705079187526,3185.89838635,0.00021886,2]
[311415819,1705079202260,473.45,0.00021718,2]
[311415820,1705079209510,3183.23633535,0.00021886,2]
[311415821,1705079232106,-265.0,0.00022509,2]
[311415822,1705079232131,-848.0,0.0002251,2]
[311415823,1705079232151,-252.04447886,0.0002251,2]
[311415824,1705079232171,-841.06811725,0.00022511,2]
[311415825,1705079233380,640.11,0.00021711,2]
[311415826,1705079248796,2000.0,0.00021741,2]
[311415827,1705079278272,352.02,0.00022,2]
[311415828,1705079289859,1463.04,0.00021906,2]
[311415829,1705079340998,453.03,0.00019827,2]
[311415830,1705079341550,453.03,0.00022091,2]
[311415831,1705079351393,23900.0,0.00021747,2]
[311415859,1705079434855,-157.3878743,0.00022503,2]
[311415860,1705079434864,-376.78302695,0.00022503,2]
[311415861,1705079434874,-1766.13596665,0.00022504,2]
[311415862,1705079434883,-249.92201205,0.00022518,2]
[311415863,1705079434893,-249.92201205,0.00022542,2]
[311415864,1705079434902,-1541.96322429,0.00022543,2]
[311415865,1705079434926,-538.89466019,0.00022543,2]
[311415866,1705079434937,-463.58578132,0.00022543,2]
[311415867,1705079434977,-436.58,0.00022543,2]
[311415868,1705079435094,-1298.24,0.00022543,2]
[311415869,1705079435106,-1193.18276844,0.00022543,2]
[311415870,1705079435116,-52.32149956,0.00022544,2]
[311415871,1705079435127,-580.09952,0.00022544,2]
[311415872,1705079435139,-97.09898044,0.00022544,2]
[311415873,1705079435148,-150.0,0.00022546,2]
[311415875,1705079435157,-150.0,0.00022546,2]
[311415876,1705079435167,-300.0,0.00022546,2]
[311415877,1705079435176,-282.03376479,0.00022548,2]
[311415878,1705079435185,-3358.46725477,0.00022548,2]
[311415879,1705079435201,-806.43710285,0.00022548,2]
[311415929,1705079437812,-2813.88564238,0.00022548,2]
[311415930,1705079437823,-2836.44,0.00022548,2]
[311415931,1705079437832,-499.99,0.00022548,2]
[311415932,1705079437846,-232.81,0.00022548,2]
[311415933,1705079437855,-481.6,0.00022548,2]
[311415934,1705079437865,-249.92201205,0.00022565,2]
[311415935,1705079437875,-700.15,0.00022565,2]
[311415936,1705079437884,-249.92201205,0.00022589,2]
[311415937,1705079437893,-496.52,0.00022589,2]
[311415938,1705079437903,-406.6,0.00022597,2]
[311415939,1705079437913,-249.92201205,0.00022613,2]
[311415940,1705079437922,-249.92201205,0.00022637,2]
[311415941,1705079437932,-249.92201205,0.00022661,2]
[311415942,1705079437942,-557.92988483,0.00022684,2]
[311415943,1705079437951,-249.92201205,0.00022685,2]
[311415944,1705079437961,-473.45,0.00022696,2]
[311415945,1705079437971,-4149.2357,0.00022699,2]
[311415946,1705079437981,-1045.86347768,0.00022704,2]
[311415947,1705079437991,-249.92201205,0.00022709,2]
[311415948,1705079438001,-406.6,0.00022712,2]
[311415949,1705079438011,-1045.86347767,0.00022732,2]
[311415950,1705079438020,-249.92201205,0.00022733,2]
[311415951,1705079438030,-734.46,0.00022754,2]
[311415952,1705079438041,-717.17,0.00022754,2]
[311415953,1705079438053,-734.11,0.00022754,2]
[311415954,1705079438063,-719.28,0.00022754,2]
[311415955,1705079438073,-249.92201205,0.00022757,2]
[311415956,1705079438083,-729.58,0.00022758,2]
[311415957,1705079438094,-734.26,0.00022758,2]
[311415958,1705079438104,-718.48,0.00022759,2]
[311415959,1705079438114,-1045.86347767,0.0002276,2]
[311415960,1705079438124,-249.92201205,0.00022781,2]
[311415961,1705079438134,-51006.942,0.00022781,2]
[311415962,1705079438144,-1045.86347767,0.00022788,2]
[311415963,1705079438155,-2018.10308734,0.00022798,2]
[311415964,1705079438165,-736.25,0.00022798,2]
[311415965,1705079438175,-49483.12491239,0.00022799,2]
[311415966,1705079438184,-213503.3854,0.000228,2]
[311415967,1705079438195,-249.92201205,0.00022804,2]
[311415968,1705079438204,-1045.86347767,0.00022816,2]
[311415969,1705079438214,-406.6,0.00022828,2]
[311415970,1705079438224,-249.92201205,0.00022828,2]
[311415971,1705079438236,-1045.86347767,0.00022844,2]
[311415972,1705079438247,-249.92201205,0.00022852,2]
[311415973,1705079438258,-712.29,0.00022871,2]
[311415974,1705079438268,-1045.86347767,0.00022872,2]
[311415975,1705079438484,-249.92201205,0.00022876,2]
[311415976,1705079438495,-155.22,0.00022887,2]
[311415977,1705079438505,-17814.6696728,0.00022889,2]
[311415979,1705079438514,-178.30777724,0.0002289,2]
[311415981,1705079438523,-350.02537736,0.00022898,2]
[311415983,1705079438533,-155.0,0.00022898,2]
[311415985,1705079438542,-263.31041702,0.00022898,2]
[311415987,1705079438553,-156.0189859,0.00022898,2]
[311415989,1705079438563,-500.0,0.00022898,2]
[311415992,1705079438573,-4071.7204,0.00022898,2]
[311415993,1705079438583,-5000.0,0.000229,2]
[311415996,1705079438593,-250.0,0.000229,2]
[311415998,1705079438602,-161.49527051,0.000229,2]
[311416000,1705079438612,-222134.44642726,0.000229,2]
[311416002,1705079438622,-160.0,0.000229,2]
[311416004,1705079438632,-249.92201205,0.000229,2]
[311416006,1705079438642,-1861.84491798,0.000229,2]
[311416007,1705079438651,-2185.70848772,0.000229,2]
[311416010,1705079438661,-507.4503594,0.000229,2]
[311416011,1705079438671,-184.41460374,0.000229,2]
[311416014,1705079438681,-569.06603646,0.000229,6]
[311416016,1705079438692,-307.92035564,0.000229,2]
[311416018,1705079438704,-1045.86347767,0.000229,2]
[311416020,1705079438715,-201.04231172,0.000229,2]
[311416022,1705079438725,-406.6,0.00022944,2]
[311416024,1705079438735,-2202.00358018,0.00022997,2]
[311416026,1705079438744,-514.52455724,0.00022997,2]
[311416028,1705079438755,-51415.47837221,0.00022997,2]
[311416030,1705079438764,-4605.2244,0.00022998,2]
[311416032,1705079438773,-204.20324422,0.00022998,2]
[311416034,1705079438782,-159.34200101,0.00022998,2]
[311416036,1705079438791,-251.65589637,0.00022998,2]
[311416038,1705079438801,-431.1574247,0.00022998,2]
[311416040,1705079438810,-155.30758621,0.00022998,2]
[311416042,1705079438819,-233.40178185,0.00022998,2]
[311416044,1705079438828,-155.54154941,0.00022998,2]
[311416046,1705079438839,-789.49744839,0.00022998,2]
[311416048,1705079438848,-525.70468295,0.00022998,2]
[311416050,1705079438857,-155.0,0.00022998,2]